fUSD/lending_fUSD_20260225
["ID","MTS","AMOUNT","RATE_DAILY","PERIOD"]
[406654894,1772038238053,-500.0,0.00017995,5]
[406654896,1772038238063,-500.0,0.00017995,5]
[406654898,1772038238072,-1000.0,0.00017999,2]
[406654900,1772038238082,-300.0,0.00017999,2]
[406654916,1772038238225,-503.37240791,0.00017999,2]
[406654919,1772038238236,-300.0,0.00017999,2]
[406654921,1772038238246,-154670.87156617,0.00018,2]
[406654923,1772038238262,-343580.16216586,0.00018,2]
[406654926,1772038238274,-723.749995,0.00018,2]
[406654940,1772038238418,-5486.62137138,0.00018,2]
[406654976,1772038239592,-2456.0,0.0001552,2]
[406654977,1772038239602,-4633.44173183,0.00018,2]
[406654978,1772038239749,-946.5879697,0.00018,2]
[406654979,1772038239760,-339.77,0.00018,2]
[406654980,1772038239772,-668.50698596,0.00018,2]
[406654981,1772038239961,-1548.57752457,0.00018,2]
[406654982,1772038239975,-7320725.97948096,0.00018,2]
[406654983,1772038240045,-68888.0,0.00018,2]
[406654993,1772038242751,-424.394407,0.00018,2]
[406654994,1772038242836,-1481.99287821,0.00018,2]
[406654995,1772038242850,-1397.88987097,0.00018,2]
[406654996,1772038242862,-381357.14896106,0.00018,2]
[406655024,1772038387959,500.0,6.428e-05,2]
[406655025,1772038476242,165.67,0.0001789,120]
[406655052,1772038803702,300.0,7.479e-05,7]
[406655053,1772038889946,-182.64,6.8e-05,2]
[406655054,1772038889980,-209.0,6.8e-05,2]
[406655055,1772038890023,-250.0,6.836e-05,2]
[406655056,1772038890059,-1123.03139304,6.836e-05,2]
[406655057,1772038890095,-300.0,6.836e-05,2]
[406655058,1772038890130,-500.0,6.873e-05,2]
[406655059,1772038890165,-370.65721392,6.873e-05,2]
[406655060,1772038890185,-129.34278608,6.873e-05,2]
[406655061,1772038890195,-53.29721392,6.873e-05,2]
[406655062,1772038890207,-209.0,6.873e-05,2]
[406655063,1772038890230,-237.70278608,6.873e-05,2]
[406655064,1772038890240,-12.29721392,7.42e-05,2]
[406655065,1772038890252,-1123.03139304,7.42e-05,2]
[406655066,1772038890264,-64.67139304,7.42e-05,2]
[406655067,1772038890277,-235.32860696,7.42e-05,2]
[406655068,1772038890293,-64.67139304,7.42e-05,2]
[406655069,1772038890302,-339.81205966,7.421e-05,2]
[406655070,1772038890312,-95.5165473,7.421e-05,2]
[406655071,1772038890325,-404.4834527,7.421e-05,2]
[406655072,1772038890334,-95.5165473,7.479e-05,2]
[406655371,1772039431528,-262.52,6.8e-05,2]
[406655373,1772039431538,-209.0,6.8e-05,2]
[406655375,1772039431548,-104.01439274,6.872e-05,2]
[406655376,1772039431560,-45.98560726,6.872e-05,2]
[406655377,1772039431569,-300.0,6.872e-05,2]
[406655378,1772039431580,-440.69410624,6.873e-05,2]
[406655379,1772039431589,-172.38674095,6.873e-05,2]
[406655380,1772039431600,-2491.59768231,6.873e-05,2]
[406655381,1772039431611,-2107.28432845,6.873e-05,2]
[406655382,1772039431623,-482.5225775,6.873e-05,2]
[406655383,1772039431634,-4727.81803649,6.873e-05,2]
[406655384,1772039431647,-2000.0,6.873e-05,2]
[406655387,1772039431865,-817.6419006,6.873e-05,2]
[406655389,1772039431877,-1075.43,6.873e-05,2]
[406655392,1772039431889,-951.09995283,6.873e-05,2]
[406655394,1772039431900,-75774.32714959,6.873e-05,2]
[406655396,1772039431914,-407.32143215,6.873e-05,2]
[406655407,1772039432015,-125570.80605133,6.873e-05,2]
[406655409,1772039432024,-250.0,7.147e-05,2]
[406655411,1772039432033,-250.0,7.46e-05,2]
[406655413,1772039432043,-204.0,7.559e-05,2]
[406655415,1772039432052,-420.0,7.559e-05,2]
[406655417,1772039432061,-5000.0,7.559e-05,2]
[406655418,1772039432071,-250.0,7.56e-05,2]
[406655419,1772039432080,-500.0,7.887e-05,2]
[406655420,1772039432090,-500.0,7.887e-05,2]
[406655421,1772039432098,-500.0,7.887e-05,2]
[406655422,1772039432107,-500.0,7.887e-05,2]
[406655423,1772039432116,-500.0,7.887e-05,2]
[406655424,1772039432126,-500.0,7.887e-05,2]
[406655425,1772039432135,-500.0,7.887e-05,2]
[406655426,1772039432144,-500.0,7.887e-05,2]
[406655427,1772039432154,-500.0,7.887e-05,2]
[406655428,1772039432163,-392.84306626,7.888e-05,2]
[406655429,1772039432173,-1864.92716342,8e-05,2]
[406655430,1772039432182,-299.99,8.227e-05,2]
[406655431,1772039432192,-587.0,8.315e-05,2]
[406655432,1772039432201,-150.99,9.048e-05,2]
[406655433,1772039432210,-499.99,9.048e-05,2]
[406655434,1772039432220,-9999.99,9.048e-05,2]
[406655435,1772039432229,-1186.15,9.048e-05,2]
[406655436,1772039432240,-9999.99,9.048e-05,2]
[406655437,1772039432250,-9999.99,9.048e-05,2]
[406655438,1772039432259,-308.7,9.048e-05,2]
[406655439,1772039432269,-999.99,9.048e-05,2]
[406655440,1772039432278,-8942.77,9.048e-05,2]
[406655441,1772039432288,-3572.96,9.048e-05,2]
[406655442,1772039432298,-150.99,9.048e-05,2]
[406655443,1772039432308,-3500.55,9.048e-05,2]
[406655444,1772039432317,-9999.99,9.048e-05,2]
[406655445,1772039432327,-250.0,9.08e-05,2]
[406655446,1772039432336,-823.0,9.146e-05,2]
[406655447,1772039432345,-725.0,9.454e-05,2]
[406655448,1772039432354,-187.0,9.661e-05,2]
[406655449,1772039432364,-1544.4,9.67e-05,2]
[406655450,1772039432374,-1152.0,0.00010061,2]
[406655451,1772039432383,-478.0,0.00010198,2]
[406655452,1772039432393,-154.0,0.00010219,2]
[406655453,1772039432402,-326.0,0.00010239,2]
[406655454,1772039432411,-2500.0,0.00011033,2]
[406655455,1772039432421,-4809.0,0.00011096,2]
[406655456,1772039432430,-151.0,0.0001113,2]
[406655457,1772039432439,-151.0,0.0001113,2]
[406655458,1772039432449,-245.63990842,0.00011132,2]
[406655459,1772039432458,-500.0,0.00011132,2]
[406655460,1772039432468,-204.78017136,0.00011132,2]
[406655461,1772039432478,-500.0,0.00011132,2]
[406655462,1772039432489,-500.0,0.00011132,2]
[406655463,1772039432499,-500.0,0.00011132,2]
[406655464,1772039432509,-500.0,0.00011132,2]
[406655465,1772039432518,-500.0,0.00011132,2]
[406655466,1772039432528,-500.0,0.00011132,2]
[406655467,1772039432537,-595.81166982,0.00011132,2]
[406655468,1772039432547,-37340.8555076,0.00011133,2]
[406655469,1772039432559,-37666.75363252,0.00011133,2]
[406655470,1772039432570,-25816.28432493,0.00011133,2]
[406655471,1772039432582,-1254.41808677,0.00011133,2]
[406655472,1772039432593,-675.0,0.00011133,2]
[406655473,1772039432631,-904.11328782,0.00011133,2]
[406655474,1772039432646,-939.37226858,0.00011133,2]
[406655475,1772039432657,-2107.37240693,0.00011133,2]
[406655480,1772039437608,-2225.31323038,0.00011133,2]
[406655481,1772039437624,-68431.86742054,0.00011133,2]
[406655482,1772039437638,-586.72142573,0.00011133,2]
[406655484,1772039437721,-18680.0,0.00011133,2]
[406655485,1772039437824,-68199.99999999,0.00011133,2]
[406655486,1772039437878,-614.7689467,0.00011133,2]
[406655547,1772039439870,-1117.93109944,0.0001091,2]
[406655548,1772039439880,-11297.62716873,0.00011133,2]
[406655549,1772039439892,-417.7896453,0.00011133,2]
[406655550,1772039439903,-378.66,0.00011133,2]
[406655551,1772039439915,-534.0,0.00011133,2]
[406655552,1772039439927,-1335.42542565,0.00011133,2]
[406655553,1772039440080,-263.18089563,0.00011133,2]
[406655554,1772039440091,-257576.44512419,0.00011133,2]
[406655555,1772039440102,-275.77490633,0.00011133,2]
[406655556,1772039440115,-1462478.25629568,0.00011133,2]
[406655557,1772039440125,-8700.56081711,0.00011133,2]
[406655558,1772039440135,-5343.78,0.00011233,2]
[406655559,1772039440145,-236.28,0.00011337,2]
[406655560,1772039440155,-1000.0,0.00011707,2]
[406655561,1772039440164,-236.28,0.00011967,2]
[406655562,1772039440174,-166.66,0.0001244,2]
[406655563,1772039440184,-236.28,0.00012597,2]
[406655564,1772039440194,-166.66,0.00012701,2]
[406655565,1772039440203,-173.91437885,0.00012923,2]
[406655566,1772039440213,-166.66,0.00012963,2]
[406655567,1772039440386,-1000.0,0.0001317,2]
[406655568,1772039440400,-166.66,0.00013225,2]
[406655569,1772039440409,-236.28,0.00013226,2]
[406655570,1772039440419,-14748.94986434,0.00013313,2]
[406655571,1772039440429,-161.12,0.0001337,2]
[406655572,1772039440439,-573.17979559,0.00013436,2]
[406655573,1772039440448,-200.0,0.00013487,2]
[406655574,1772039440457,-151.0,0.00013487,2]
[406655575,1772039440466,-151.0,0.00013487,2]
[406655576,1772039440476,-151.0,0.00013487,2]
[406655577,1772039440485,-151.0,0.00013487,2]
[406655578,1772039440496,-151.0,0.00013487,2]
[406655579,1772039440505,-151.0,0.00013487,2]
[406655580,1772039440514,-151.0,0.00013487,2]
[406655581,1772039440523,-151.0,0.00013487,2]
[406655582,1772039440532,-151.0,0.00013487,2]
[406655583,1772039440542,-153.74158134,0.00013487,2]
[406655584,1772039440551,-166.66,0.00013487,2]
[406655585,1772039440560,-6743.6302,0.00013495,2]
[406655586,1772039440570,-1236.0369,0.00013495,2]
[406655587,1772039440579,-80901.0929,0.00013495,2]
[406655588,1772039440589,-500.0,0.00013495,2]
[406655589,1772039440599,-8407.31,0.00013557,2]
[406655590,1772039440608,-2482.0,0.00013562,2]
[406655591,1772039440618,-1098.52918604,0.00013595,3]
[406655592,1772039440627,-17226.84,0.0001363,2]
[406655593,1772039440638,-500.0,0.00013698,2]
[406655594,1772039440651,-500.0,0.00013698,2]
[406655595,1772039440661,-500.0,0.00013698,2]
[406655596,1772039440670,-490.05,0.00013699,2]
[406655597,1772039440679,-172.10662643,0.00013699,2]
[406655598,1772039440690,-305.29644962,0.00013699,2]
[406655599,1772039440700,-500.0,0.00013699,2]
[406655600,1772039440710,-166.66,0.00013749,2]
[406655601,1772039440721,-236.28,0.00013856,2]
[406655602,1772039440730,-200.0,0.00014035,2]
[406655603,1772039440739,-2288.4601003,0.0001421,7]
[406655604,1772039440750,-1000.0,0.00014247,2]
[406655605,1772039440759,-490.05,0.00014384,2]
[406655606,1772039440768,-236.28,0.00014486,2]
[406655607,1772039440778,-1000.0,0.00014634,2]
[406655608,1772039440787,-1500.0,0.00014795,2]
[406655609,1772039440797,-506.0,0.0001489,2]
[406655610,1772039440807,-169.39470199,0.000149,2]
[406655611,1772039440816,-169.39470198,0.000149,2]
[406655612,1772039440826,-169.39470198,0.000149,2]
[406655613,1772039440835,-250.0,0.00015,2]
[406655614,1772039440845,-490.05,0.00015068,2]
[406655615,1772039440855,-236.28,0.00015116,2]
[406655616,1772039440864,-1985.84220954,0.00015142,2]
[406655617,1772039440874,-201.59337925,0.00015142,2]
[406655618,1772039440883,-151.0,0.00015229,2]
[406655619,1772039440893,-1031127.1396,0.00015232,2]
[406655620,1772039440902,-239.11314413,0.00015242,2]
[406655621,1772039440912,-2000.0,0.00015342,2]
[406655622,1772039440921,-32879.9337,0.00015419,2]
[406655623,1772039440931,-1000.0,0.00015419,2]
[406655624,1772039440941,-150.0,0.0001552,2]
[406655625,1772039440950,-150.0,0.0001552,2]
[406655626,1772039440960,-215.0,0.0001552,2]
[406655627,1772039440969,-150.0,0.0001552,2]
[406655628,1772039440979,-150.0,0.0001552,2]
[406655629,1772039440988,-150.0,0.0001552,2]
[406655630,1772039440998,-150.0,0.0001552,2]
[406655631,1772039441007,-150.0,0.0001552,2]
[406655632,1772039441016,-150.135,0.0001552,2]
[406655633,1772039441026,-150.0,0.0001552,2]
[406655634,1772039441035,-618.0,0.0001552,2]
[406655635,1772039441045,-1340.0,0.0001552,2]
[406655636,1772039441054,-1040.0,0.0001552,2]
[406655637,1772039441064,-1277.0,0.0001552,2]
[406655638,1772039441072,-920.0,0.00015558,2]
[406655639,1772039441082,-1210.0,0.00015558,2]
[406655640,1772039441091,-5982.0,0.00015558,2]
[406655641,1772039441100,-5405.0,0.00015558,2]
[406655642,1772039441110,-2456.0,0.00015558,2]
[406655643,1772039441119,-1985.84220951,0.00015602,2]
[406655644,1772039441129,-236.28,0.00015746,2]
[406655645,1772039441139,-490.05,0.00015753,2]
[406655646,1772039441148,-2500.0,0.0001589,2]
[406655647,1772039441157,-1985.84220951,0.00016061,2]
[406655648,1772039441166,-1000.0,0.00016097,2]
[406655649,1772039441176,-500.0,0.00016356,2]
[406655650,1772039441185,-800.0,0.00016356,2]
[406655651,1772039441195,-500.0,0.00016356,2]
[406655652,1772039441204,-236.28,0.00016376,2]
[406655653,1772039441213,-526.7,0.00016438,2]
[406655654,1772039441223,-490.05,0.00016438,2]
[406655655,1772039441232,-3000.0,0.00016438,2]
[406655656,1772039441242,-1985.84220951,0.00016521,2]
[406655657,1772039441253,-201.59337924,0.00016521,2]
[406655658,1772039441263,-239.11314411,0.00016571,2]
[406655659,1772039441272,-506.0,0.00016699,3]
[406655660,1772039441281,-526.7,0.00016712,2]
[406655661,1772039441291,-160.0,0.0001672,2]
[406655662,1772039441301,-200.0,0.00016738,2]
[406655663,1772039441310,-200.0,0.00016792,2]
[406655664,1772039441320,-1985.84220951,0.00016981,2]
[406655665,1772039441330,-526.7,0.00016986,2]
[406655666,1772039441340,-301.03849165,0.00016986,2]
[406655667,1772039441351,-110783.69499395,0.00017,2]
[406655668,1772039441360,-300.0,0.00017,2]
[406655669,1772039441370,-236.28,0.00017005,2]
[406655670,1772039441379,-160.0,0.0001704,2]
[406655671,1772039441398,-844.0,0.0001704,2]
[406655672,1772039441408,-500.0,0.00017099,2]
[406655673,1772039441417,-500.0,0.00017099,2]
[406655674,1772039441427,-500.0,0.00017099,2]
[406655675,1772039441436,-500.0,0.00017099,2]
[406655676,1772039441449,-500.0,0.00017099,2]
[406655677,1772039441459,-500.0,0.00017099,2]
[406655678,1772039441468,-500.0,0.00017099,2]
[406655679,1772039441477,-500.0,0.00017099,2]
[406655680,1772039441488,-500.0,0.00017099,2]
[406655681,1772039441501,-500.0,0.00017099,2]
[406655682,1772039441511,-500.0,0.00017099,2]
[406655683,1772039441521,-500.0,0.00017099,2]
[406655684,1772039441531,-484.51217363,0.00017099,2]
[406655685,1772039441541,-693.3919763,0.00017099,2]
[406655686,1772039441552,-277.35679052,0.00017099,2]
[406655687,1772039441562,-267.13282626,0.00017154,2]
[406655688,1772039441573,-350.0,0.0001718,2]
[406655689,1772039441583,-526.7,0.0001726,2]
[406655690,1772039441594,-170.0,0.0001736,2]
[406655691,1772039441605,-1985.84220951,0.0001744,2]
[406655692,1772039441615,-526.7,0.00017534,2]
[406655693,1772039441625,-1000.0,0.0001756,2]
[406655694,1772039441636,-1089.66675987,0.0001764,2]
[406655695,1772039441647,-287.61899177,0.00017647,2]
[406655696,1772039441658,-150.0,0.00017698,2]
[406655697,1772039441668,-350.0,0.00017715,2]
[406655698,1772039441679,-232.0,0.00017718,2]
[406655699,1772039441689,-800.0,0.00017726,7]
[406655700,1772039441700,-1985.241,0.00017787,2]
[406655701,1772039441710,-157.767,0.00017787,2]
[406655702,1772039441723,-526.7,0.00017808,2]
[406655703,1772039441734,-500.0,0.00017808,2]
[406655704,1772039441743,-500.0,0.00017808,2]
[406655705,1772039441760,-500.0,0.00017808,2]
[406655706,1772039441770,-500.0,0.00017808,2]
[406655707,1772039441780,-500.0,0.00017808,2]
[406655708,1772039441789,-500.0,0.00017808,2]
[406655709,1772039441798,-500.0,0.00017808,2]
[406655710,1772039441807,-500.0,0.00017808,2]
[406655711,1772039441817,-500.0,0.00017808,2]
[406655712,1772039441826,-500.0,0.00017808,2]
[406655713,1772039441836,-500.0,0.00017808,2]
[406655714,1772039441846,-500.0,0.00017808,2]
[406655715,1772039441855,-500.0,0.00017808,2]
[406655716,1772039441864,-500.0,0.00017808,2]
[406655717,1772039441873,-500.0,0.00017808,2]
[406655718,1772039441883,-500.0,0.00017808,2]
[406655719,1772039441892,-500.0,0.00017808,2]
[406655720,1772039441902,-500.0,0.00017808,2]
[406655721,1772039441912,-500.0,0.00017808,2]
[406655722,1772039441921,-500.0,0.00017808,2]
[406655723,1772039441931,-500.0,0.00017808,2]
[406655724,1772039441941,-500.0,0.00017808,2]
[406655725,1772039441950,-500.0,0.00017808,2]
[406655726,1772039441959,-481.74761645,0.00017808,2]
[406655727,1772039441968,-500.0,0.00017808,2]
[406655728,1772039441977,-500.0,0.00017808,2]
[406655729,1772039441987,-500.0,0.00017808,2]
[406655730,1772039441999,-1495.36800986,0.0001783,2]
[406655731,1772039442008,-350.0,0.00017838,2]
[406655732,1772039442018,-200.0,0.00017856,2]
[406655733,1772039442027,-500.0,0.00017863,2]
[406655734,1772039442037,-10000.0,0.000179,2]
[406655735,1772039442047,-1985.84220951,0.000179,2]
[406655736,1772039442056,-201.59337924,0.000179,3]
[406655737,1772039442067,-239.11314411,0.000179,2]
[406655738,1772039442077,-6862.0,0.000179,2]
[406655739,1772039442087,-500.0,0.00017918,2]
[406655740,1772039442096,-500.0,0.00017972,2]
[406655741,1772039442106,-151.0,0.00017988,2]
[406655742,1772039442116,-2002.4527018,0.00017991,2]
[406655743,1772039442126,-640076.4347833,0.00017991,2]
[406655744,1772039442135,-151.0,0.00017991,2]
[406655745,1772039442144,-184.593147,0.00017991,2]
[406655746,1772039442153,-151.0,0.00017991,2]
[406655747,1772039442163,-151.0,0.00017991,2]
[406655748,1772039442172,-259.968216,0.00017991,2]
[406655749,1772039442181,-259.968216,0.00017991,2]
[406655750,1772039442191,-259.968216,0.00017991,2]
[406655751,1772039442200,-259.968216,0.00017991,2]
[406655752,1772039442209,-3166.3521997,0.00017991,2]
[406655753,1772039442218,-300.0,0.00017995,5]
[406655754,1772039442228,-15693.1331752,0.00017999,2]
[406655755,1772039442238,-16565.8740766,0.00017999,2]
[406655756,1772039442250,-187862.6125789,0.00017999,2]
[406655757,1772039442259,-300.0,0.00017999,2]
[406655758,1772039442269,-300.0,0.00017999,2]
[406655759,1772039442279,-151.0,0.00017999,2]
[406655760,1772039442288,-151.0,0.00017999,2]
[406655761,1772039442297,-151.0,0.00017999,2]
[406655762,1772039442307,-151.0,0.00017999,2]
[406655763,1772039442316,-151.0,0.00017999,2]
[406655764,1772039442326,-151.0,0.00017999,2]
[406655765,1772039442335,-433.231877,0.00017999,2]
[406655766,1772039442344,-433.231877,0.00017999,2]
[406655767,1772039442354,-433.231877,0.00017999,2]
[406655768,1772039442363,-433.231877,0.00017999,2]
[406655769,1772039442372,-3542667.76727827,0.00018,2]
[406655796,1772039442981,-150.0,0.00013041,2]
[406655797,1772039442992,-21545.11924382,0.00018,2]
[406655798,1772039443258,-49426.85118,0.00018,2]
[406655799,1772039443271,-39100.71063107,0.00018,2]
[406655800,1772039443283,-1487458.67655692,0.00018,2]
[406655955,1772039445475,-253.8525,0.00018,2]
[406655957,1772039445938,-2124.43790264,0.00018,2]
[406657366,1772040312514,-300.0,6.661e-05,2]
[406657367,1772040312535,-300.0,6.661e-05,2]
[406657368,1772040312557,-1200.0,6.661e-05,2]
[406657369,1772040312577,-14748.94986434,6.662e-05,2]
[406657370,1772040312597,-3147.61265801,6.666e-05,2]
[406657371,1772040312616,-1200.0,6.67e-05,2]
[406657372,1772040312649,-150.0,6.67e-05,2]
[406657373,1772040312670,-250.0,6.67e-05,2]
[406657374,1772040312693,-171.9479359,6.671e-05,2]
[406657375,1772040312713,-493.34611995,6.671e-05,2]
[406657376,1772040312738,-500.0,6.671e-05,2]
[406657377,1772040312761,-563.63148188,6.671e-05,2]
[406657378,1772040312782,-429.03719494,6.671e-05,2]
[406657379,1772040312802,-500.0,6.671e-05,2]
[406657380,1772040312821,-500.0,6.671e-05,2]
[406657381,1772040312841,-500.0,6.671e-05,2]
[406657382,1772040312865,-500.0,6.671e-05,2]
[406657383,1772040312892,-500.0,6.671e-05,2]
[406657384,1772040312912,-500.0,6.671e-05,2]
[406657385,1772040312933,-500.0,6.671e-05,2]
[406657386,1772040312957,-500.0,6.671e-05,2]
[406657387,1772040312979,-500.0,6.671e-05,2]
[406657388,1772040313005,-500.0,6.671e-05,2]
[406657389,1772040313026,-473.21656198,6.671e-05,2]
[406657390,1772040313050,-500.0,6.671e-05,2]
[406657391,1772040313070,-617.38329837,6.671e-05,2]
[406657392,1772040313094,-500.0,6.671e-05,2]
[406657393,1772040313118,-500.0,6.671e-05,2]
[406657394,1772040313140,-500.0,6.671e-05,2]
[406657395,1772040313163,-500.0,6.671e-05,2]
[406657396,1772040313186,-500.0,6.671e-05,2]
[406657397,1772040313210,-500.0,6.671e-05,2]
[406657398,1772040313233,-500.0,6.671e-05,2]
[406657399,1772040313256,-500.0,6.671e-05,2]
[406657400,1772040313279,-500.0,6.671e-05,2]
[406657401,1772040313306,-500.0,6.671e-05,2]
[406657402,1772040313330,-500.0,6.671e-05,2]
[406657403,1772040313353,-500.0,6.671e-05,2]
[406657404,1772040313378,-500.0,6.671e-05,2]
[406657405,1772040313403,-500.0,6.671e-05,2]
[406657406,1772040313427,-500.0,6.671e-05,2]
[406657407,1772040313452,-500.0,6.671e-05,2]
[406657408,1772040313475,-500.0,6.671e-05,2]
[406657409,1772040313502,-500.0,6.671e-05,2]
[406657410,1772040313526,-594.6874888,6.671e-05,2]
[406657411,1772040313549,-500.0,6.671e-05,2]
[406657412,1772040313576,-500.0,6.671e-05,2]
[406657413,1772040313791,-500.0,6.671e-05,2]
[406657414,1772040313827,-500.0,6.671e-05,2]
[406657415,1772040313850,-500.0,6.671e-05,2]
[406657416,1772040313874,-500.0,6.671e-05,2]
[406657417,1772040313901,-500.0,6.671e-05,2]
[406657418,1772040313930,-500.0,6.671e-05,2]
[406657419,1772040313954,-500.0,6.671e-05,2]
[406657420,1772040313979,-500.0,6.671e-05,2]
[406657421,1772040314007,-500.0,6.671e-05,2]
[406657422,1772040314034,-500.0,6.671e-05,2]
[406657423,1772040314060,-500.0,6.671e-05,2]
[406657424,1772040314086,-500.0,6.671e-05,2]
[406657425,1772040314111,-500.0,6.671e-05,2]
[406657426,1772040314135,-500.0,6.671e-05,2]
[406657427,1772040314159,-500.0,6.671e-05,2]
[406657428,1772040314184,-500.0,6.671e-05,2]
[406657429,1772040314212,-500.0,6.671e-05,2]
[406657430,1772040314236,-500.0,6.671e-05,2]
[406657431,1772040314259,-360.18739583,6.671e-05,2]
[406657433,1772040364988,-300.0,6.67e-05,2]
[406657434,1772040365017,-139.81260417,6.671e-05,2]
[406657435,1772040365046,-500.0,6.671e-05,2]
[406657436,1772040365075,-500.0,6.671e-05,2]
[406657437,1772040365105,-500.0,6.671e-05,2]
[406657438,1772040365134,-500.0,6.671e-05,2]
[406657439,1772040365164,-500.0,6.671e-05,2]
[406657440,1772040365193,-500.0,6.671e-05,2]
[406657441,1772040365222,-500.0,6.671e-05,2]
[406657442,1772040365249,-500.0,6.671e-05,2]
[406657443,1772040365278,-500.0,6.671e-05,2]
[406657444,1772040365305,-500.0,6.671e-05,2]
[406657445,1772040365329,-239.97949763,6.671e-05,2]
[406657446,1772040365351,-500.0,6.671e-05,2]
[406657447,1772040365374,-262.44978733,6.671e-05,2]
[406657448,1772040365402,-500.0,6.671e-05,2]
[406657449,1772040365431,-500.0,6.671e-05,2]
[406657450,1772040365456,-500.0,6.671e-05,2]
[406657451,1772040365483,-248.62376844,6.671e-05,2]
[406657452,1772040365509,-500.0,6.671e-05,2]
[406657453,1772040365535,-500.0,6.671e-05,2]
[406657454,1772040365564,-500.0,6.671e-05,2]
[406657455,1772040365592,-500.0,6.671e-05,2]
[406657456,1772040365617,-500.0,6.671e-05,2]
[406657457,1772040365645,-500.0,6.671e-05,2]
[406657458,1772040365674,-500.0,6.671e-05,2]
[406657459,1772040365703,-500.0,6.671e-05,2]
[406657460,1772040365730,-500.0,6.671e-05,2]
[406657461,1772040365757,-500.0,6.671e-05,2]
[406657462,1772040365783,-500.0,6.671e-05,2]
[406657463,1772040365810,-500.0,6.671e-05,2]
[406657464,1772040365838,-500.0,6.671e-05,2]
[406657465,1772040365865,-500.0,6.671e-05,2]
[406657466,1772040365895,-500.0,6.671e-05,2]
[406657467,1772040365927,-500.0,6.671e-05,2]
[406657468,1772040365959,-500.0,6.671e-05,2]
[406657469,1772040365988,-500.0,6.671e-05,2]
[406657470,1772040366017,-500.0,6.671e-05,2]
[406657471,1772040366053,-500.0,6.671e-05,2]
[406657472,1772040366084,-500.0,6.671e-05,2]
[406657473,1772040366114,-500.0,6.671e-05,2]
[406657474,1772040366141,-500.0,6.671e-05,2]
[406657475,1772040366169,-500.0,6.671e-05,2]
[406657476,1772040366197,-500.0,6.671e-05,2]
[406657477,1772040366222,-208.0,6.671e-05,2]
[406657478,1772040366250,-28531.13434243,6.672e-05,2]
[406657485,1772040631698,-300.0,6.568e-05,2]
[406657486,1772040631707,-1014.0,6.568e-05,2]
[406657487,1772040631716,-500.0,6.569e-05,2]
[406657488,1772040631726,-163.69072911,6.569e-05,2]
[406657489,1772040631735,-500.0,6.569e-05,2]
[406657490,1772040631745,-179.70925537,6.569e-05,2]
[406657491,1772040631754,-234.33112572,6.569e-05,2]
[406657492,1772040631763,-500.0,6.569e-05,2]
[406657493,1772040631773,-500.0,6.569e-05,2]
[406657494,1772040631782,-500.0,6.569e-05,2]
[406657495,1772040631791,-500.0,6.569e-05,2]
[406657496,1772040631800,-500.0,6.569e-05,2]
[406657497,1772040631810,-500.0,6.569e-05,2]
[406657498,1772040631819,-124.71976601,6.569e-05,2]
[406657499,1772040631872,-292.97700002,6.569e-05,2]
[406657500,1772040631883,-82.30323397,6.569e-05,2]
[406657501,1772040631893,-500.0,6.569e-05,2]
[406657502,1772040631902,-500.0,6.569e-05,2]
[406657503,1772040631912,-500.0,6.569e-05,2]
[406657504,1772040631922,-345.34228397,6.569e-05,2]
[406657505,1772040631931,-158010.67385424,6.57e-05,2]
[406657506,1772040631942,-39315.24186033,6.57e-05,2]
[406657507,1772040631953,-47558.73299283,6.57e-05,2]
[406657508,1772040631969,-2937.40064363,6.57e-05,2]
[406657658,1772040637797,-640.93868497,6.57e-05,2]
[406657659,1772040637890,-3216.5170958,6.57e-05,2]